[Event "Allsvenskan div 1, gr.3, R1. SS Manhem - Hultsfreds SK"]
[Site "Goteborg, Sweden"]
[Date "2019.10.20"]
[Round "1.1"]
[White "Lindborg, Patrik"]
[Black "Fendrich, David"]
[Result "1/2-1/2"]
[TimeControl "90 min. for 40 moves + 30 min. + 30 seconds per move from move one."]
[WhiteElo "2117"]
[BlackElo "2216"]

1. d4 {[%clk 01:30:57]} {[%emt 00:00:01]} e6 {[%clk 01:30:53]} {[%emt
00:00:07]} 2. c4 {[%clk 01:31:24]} {[%emt 00:00:04]} b6 {[%clk 01:31:17]}
{[%emt 00:00:05]} 3. Nf3 {[%clk 01:26:52]} {[%emt 00:05:01]} Bb7 {[%clk
01:30:33]} {[%emt 00:01:14]} 4. e3 {[%clk 01:26:27]} {[%emt 00:00:56]} f5
{[%clk 01:26:14]} {[%emt 00:04:48]} 5. Bd3 {[%clk 01:25:45]} {[%emt 00:01:13]}
Nf6 {[%clk 01:25:35]} {[%emt 00:01:09]} 6. O-O {[%clk 01:24:58]} {[%emt
00:01:17]} Be7 {[%clk 01:23:20]} {[%emt 00:02:44]} 7. Nc3 {[%clk 01:23:51]}
{[%emt 00:01:37]} O-O {[%clk 01:22:15]} {[%emt 00:01:35]} 8. d5 {[%clk
01:19:28]} {[%emt 00:04:54]} Na6 {[%clk 01:13:33]} {[%emt 00:09:12]} 9. Nd4
{[%clk 01:03:20]} {[%emt 00:16:38]} Nc5 {[%clk 01:11:21]} {[%emt 00:02:42]} 10.
Be2 {[%clk 00:58:55]} {[%emt 00:04:55]} a5 {[%clk 01:04:29]} {[%emt 00:07:22]}
11. Bf3 {[%clk 00:57:10]} {[%emt 00:02:15]} Nfe4 {[%clk 01:00:07]} {[%emt
00:04:52]} 12. Bxe4 {[%clk 00:52:25]} {[%emt 00:05:15]} fxe4 {[%clk 00:58:25]}
{[%emt 00:02:12]} 13. Qg4 {[%clk 00:47:44]} {[%emt 00:05:11]} Rf6 {[%clk
00:41:37]} {[%emt 00:17:17]} 14. Nxe4 {[%clk 00:44:40]} {[%emt 00:03:34]} Rg6
{[%clk 00:41:52]} {[%emt 00:00:14]} 15. Qf3 {[%clk 00:44:27]} {[%emt 00:00:44]}
Nxe4 {[%clk 00:34:28]} {[%emt 00:07:55]} 16. Qxe4 {[%clk 00:42:42]} {[%emt
00:02:15]} Qf8 {[%clk 00:28:43]} {[%emt 00:06:15]} 17. Ne2 {[%clk 00:38:11]}
{[%emt 00:05:01]} exd5 {[%clk 00:27:08]} {[%emt 00:02:05]} 18. cxd5 {[%clk
00:38:30]} {[%emt 00:00:11]} Bd6 {[%clk 00:26:16]} {[%emt 00:01:21]} 19. Nf4
{[%clk 00:34:28]} {[%emt 00:04:32]} Rh6 {[%clk 00:25:27]} {[%emt 00:01:19]} 20.
Rd1 {[%clk 00:24:33]} {[%emt 00:10:26]} Re8 {[%clk 00:23:40]} {[%emt 00:02:16]}
21. Qc4 {[%clk 00:24:40]} {[%emt 00:00:23]} Qf5 {[%clk 00:21:09]} {[%emt
00:03:01]} 22. h3 {[%clk 00:12:56]} {[%emt 00:12:14]} g5 {[%clk 00:18:20]}
{[%emt 00:03:19]} 23. Ne2 {[%clk 00:12:34]} {[%emt 00:00:51]} Rh4 {[%clk
00:15:27]} {[%emt 00:03:23]} 24. Qd3 {[%clk 00:10:46]} {[%emt 00:02:18]} Qf7
{[%clk 00:11:43]} {[%emt 00:04:14]} 25. f4 {[%clk 00:08:44]} {[%emt 00:02:32]}
gxf4 {[%clk 00:10:43]} {[%emt 00:01:31]} 26. Nxf4 {[%clk 00:08:51]} {[%emt
00:00:23]} Bxf4 {[%clk 00:07:30]} {[%emt 00:03:43]} 27. exf4 {[%clk 00:09:14]}
{[%emt 00:00:06]} Rh5 {[%clk 00:07:30]} {[%emt 00:00:30]} 28. Bd2 {[%clk
00:07:45]} {[%emt 00:02:00]} Rxd5 {[%clk 00:07:44]} {[%emt 00:00:16]} 29. Qg3+
{[%clk 00:08:03]} {[%emt 00:00:12]} Qg6 {[%clk 00:06:03]} {[%emt 00:02:11]} 30.
Qxg6+ {[%clk 00:07:25]} {[%emt 00:01:08]} hxg6 {[%clk 00:06:26]} {[%emt
00:00:07]} 31. Kf2 {[%clk 00:07:10]} {[%emt 00:00:45]} Rd3 {[%clk 00:04:23]}
{[%emt 00:02:33]} 32. Bc3 {[%clk 00:07:02]} {[%emt 00:00:38]} Rxd1 33. Rxd1
{[%clk 00:07:31]} d5 {[%clk 00:03:03]} 34. Re1 {[%clk 00:07:29]} Rxe1 {[%clk
00:03:12]} {[%emt 00:00:22]} 35. Kxe1 {[%clk 00:07:16]} {[%emt 00:00:43]} c5
{[%clk 00:02:41]} {[%emt 00:01:01]} 36. Be5 {[%clk 00:07:14]} {[%emt 00:00:32]}
b5 {[%clk 00:02:18]} {[%emt 00:00:53]} 37. a4 {[%clk 00:05:40]} {[%emt
00:02:04]} bxa4 {[%clk 00:01:24]} {[%emt 00:01:24]} 38. Bc7 {[%clk 00:05:52]}
{[%emt 00:00:18]} d4 {[%clk 00:00:49]} {[%emt 00:01:05]} 39. Bb6 {[%clk
00:05:07]} {[%emt 00:01:15]} Bxg2 {[%clk 00:00:50]} {[%emt 00:00:29]} 40. Bxc5
{[%clk 00:05:20]} {[%emt 00:00:16]} Bxh3 {[%clk 00:00:48]} {[%emt 00:00:32]} 41.
Bxd4 {[%clk 00:05:47]} {[%emt 00:00:04]} Kf7 {[%clk 00:00:41]} {[%emt
00:00:38]} 1/2-1/2

[Event "Allsvenskan div 1, gr.3, R1. SS Manhem - Hultsfreds SK"]
[Site "Goteborg, Sweden"]
[Date "2019.10.20"]
[Round "1.2"]
[White "Welin, Mats"]
[Black "Alm, Håkan"]
[Result "1-0"]
[TimeControl "90 min. for 40 moves + 30 min. + 30 seconds per move from move one."]
[WhiteTitle "FM"]
[WhiteElo "2306"]
[BlackElo "2276"]

1. e4 {[%clk 01:30:44]} {[%emt 00:00:16]} e5 {[%clk 01:30:33]} {[%emt
00:00:28]} 2. Nf3 {[%clk 01:30:36]} {[%emt 00:00:38]} Nf6 {[%clk 01:30:50]}
{[%emt 00:00:12]} 3. Nxe5 {[%clk 01:28:46]} {[%emt 00:02:20]} d6 {[%clk
01:31:07]} {[%emt 00:00:12]} 4. Nf3 {[%clk 01:26:19]} {[%emt 00:02:57]} Nxe4
{[%clk 01:31:29]} {[%emt 00:00:08]} 5. d4 {[%clk 01:25:43]} {[%emt 00:01:06]}
Be7 {[%clk 01:27:50]} {[%emt 00:04:09]} 6. Bd3 {[%clk 01:24:08]} {[%emt
00:02:05]} d5 {[%clk 01:27:51]} {[%emt 00:00:29]} 7. O-O {[%clk 01:23:32]}
{[%emt 00:01:07]} Nc6 {[%clk 01:26:24]} {[%emt 00:01:56]} 8. c4 {[%clk
01:23:13]} {[%emt 00:00:49]} Nb4 {[%clk 01:26:02]} {[%emt 00:00:51]} 9. Be2
{[%clk 01:22:59]} {[%emt 00:00:44]} dxc4 {[%clk 01:20:40]} {[%emt 00:05:52]} 10.
Bxc4 {[%clk 01:19:39]} {[%emt 00:03:50]} O-O {[%clk 01:13:29]} {[%emt
00:07:41]} 11. Ne5 {[%clk 00:59:02]} {[%emt 00:21:08]} c5 {[%clk 00:55:29]}
{[%emt 00:18:30]} 12. Qe2 {[%clk 00:43:31]} {[%emt 00:16:01]} Nf6 {[%clk
00:37:45]} {[%emt 00:18:14]} 13. dxc5 {[%clk 00:42:59]} {[%emt 00:01:02]} Bxc5
{[%clk 00:34:35]} {[%emt 00:03:39]} 14. Nc3 {[%clk 00:39:28]} {[%emt 00:04:00]}
Bf5 {[%clk 00:31:09]} {[%emt 00:03:56]} 15. Bg5 {[%clk 00:35:48]} {[%emt
00:04:11]} Qc7 {[%clk 00:21:49]} {[%emt 00:09:50]} 16. Bxf6 {[%clk 00:26:17]}
{[%emt 00:10:02]} gxf6 {[%clk 00:22:13]} {[%emt 00:00:05]} 17. Ng4 {[%clk
00:26:41]} {[%emt 00:00:07]} Bxg4 {[%clk 00:20:26]} {[%emt 00:02:17]} 18. Qxg4+
{[%clk 00:26:55]} {[%emt 00:00:16]} Kh8 {[%clk 00:20:52]} {[%emt 00:00:03]} 19.
Rae1 {[%clk 00:20:01]} {[%emt 00:07:24]} Rad8 {[%clk 00:17:19]} {[%emt
00:04:03]} 20. Qf5 {[%clk 00:16:46]} {[%emt 00:03:45]} Bd4 {[%clk 00:15:35]}
{[%emt 00:02:14]} 21. Re4 {[%emt 00:11:42]} Qxc4 {[%clk 00:12:31]} {[%emt
00:03:31]} 22. Rh4 {[%clk 00:05:55]} {[%emt 00:00:12]} 1-0

[Event "Allsvenskan div 1, gr.3, R1. SS Manhem - Hultsfreds SK"]
[Site "Goteborg, Sweden"]
[Date "2019.10.20"]
[Round "1.3"]
[White "Kring, Stephan"]
[Black "Bengtsson, Jonas"]
[Result "0-1"]
[TimeControl "90 min. for 40 moves + 30 min. + 30 seconds per move from move one."]
[WhiteElo "2104"]
[BlackElo "2166"]

1. d4 {[%clk 01:30:56]} {[%emt 00:00:01]} Nf6 {[%clk 01:30:53]} {[%emt
00:00:09]} 2. c4 {[%clk 01:31:20]} {[%emt 00:00:07]} e6 {[%clk 01:31:18]}
{[%emt 00:00:05]} 3. Nf3 {[%clk 01:31:39]} {[%emt 00:00:11]} b6 {[%clk
01:31:42]} {[%emt 00:00:06]} 4. g3 {[%clk 01:31:36]} {[%emt 00:00:33]} Ba6
{[%clk 01:32:06]} {[%emt 00:00:05]} 5. Qa4 {[%clk 01:25:24]} {[%emt 00:06:43]}
Bb7 {[%clk 01:31:20]} {[%emt 00:01:16]} 6. Bg2 {[%clk 01:25:47]} {[%emt
00:00:07]} c5 {[%clk 01:31:44]} {[%emt 00:00:06]} 7. e3 {[%clk 01:25:40]}
{[%emt 00:00:37]} Be7 {[%clk 01:30:01]} {[%emt 00:02:12]} 8. O-O {[%clk
01:25:20]} {[%emt 00:00:52]} O-O {[%clk 01:30:19]} {[%emt 00:00:11]} 9. Nc3
{[%clk 01:24:56]} {[%emt 00:00:54]} d6 {[%clk 01:28:44]} {[%emt 00:02:04]} 10.
Re1 {[%clk 01:15:41]} {[%emt 00:09:46]} a6 {[%clk 01:25:02]} {[%emt 00:04:12]}
11. Qc2 {[%clk 01:05:46]} {[%emt 00:10:25]} Nbd7 {[%clk 01:24:54]} {[%emt
00:00:37]} 12. b3 {[%clk 01:05:36]} {[%emt 00:00:40]} Qc7 {[%clk 01:22:33]}
{[%emt 00:02:51]} 13. Bb2 {[%clk 01:05:32]} {[%emt 00:00:34]} Rac8 {[%clk
01:22:10]} {[%emt 00:00:52]} 14. Rad1 {[%clk 00:57:01]} {[%emt 00:09:01]} cxd4
{[%clk 01:12:30]} {[%emt 00:10:10]} 15. Nxd4 {[%clk 00:55:42]} {[%emt
00:01:50]} Bxg2 {[%clk 01:12:50]} {[%emt 00:00:10]} 16. Kxg2 {[%clk 00:55:59]}
{[%emt 00:00:13]} Qb7+ {[%clk 01:13:04]} {[%emt 00:00:16]} 17. e4 {[%clk
00:49:06]} {[%emt 00:07:23]} Rfe8 {[%clk 01:05:17]} {[%emt 00:08:17]} 18. f3
{[%clk 00:37:21]} {[%emt 00:12:15]} Bf8 {[%clk 00:58:32]} {[%emt 00:07:14]} 19.
Qe2 {[%clk 00:34:51]} {[%emt 00:03:01]} Rc7 {[%clk 00:47:36]} {[%emt 00:11:26]}
20. Rd2 {[%clk 00:31:25]} {[%emt 00:03:56]} Rec8 {[%clk 00:42:38]} {[%emt
00:05:28]} 21. Red1 {[%clk 00:28:29]} {[%emt 00:03:27]} g6 {[%clk 00:35:34]}
{[%emt 00:07:33]} 22. Qe3 {[%clk 00:26:36]} {[%emt 00:02:23]} Nc5 {[%clk
00:30:31]} {[%emt 00:05:33]} 23. Nde2 {[%clk 00:22:39]} {[%emt 00:04:27]} b5
{[%clk 00:29:47]} {[%emt 00:01:14]} 24. cxb5 {[%clk 00:14:45]} {[%emt
00:08:24]} axb5 {[%clk 00:21:26]} {[%emt 00:08:51]} 25. Nxb5 {[%clk 00:13:38]}
{[%emt 00:01:37]} Nfxe4 {[%clk 00:19:17]} {[%emt 00:02:38]} 26. Nxc7 {[%clk
00:10:35]} {[%emt 00:03:34]} Nxd2 {[%clk 00:19:40]} {[%emt 00:00:07]} 27. Nxe6
{[%clk 00:09:50]} {[%emt 00:01:15]} Nxf3 {[%clk 00:16:01]} {[%emt 00:04:09]} 28.
Qxf3 {[%clk 00:06:47]} {[%emt 00:03:33]} Qxf3+ {[%clk 00:15:30]} {[%emt
00:01:02]} 29. Kxf3 {[%clk 00:07:11]} {[%emt 00:00:06]} fxe6 {[%clk 00:15:00]}
{[%emt 00:00:59]} 30. Nf4 {[%clk 00:07:08]} {[%emt 00:00:32]} Kf7 {[%clk
00:15:22]} {[%emt 00:00:09]} 31. Rc1 {[%clk 00:07:09]} {[%emt 00:00:29]} e5
{[%clk 00:13:54]} {[%emt 00:01:57]} 32. Nd5 {[%clk 00:05:25]} {[%emt 00:02:14]}
Ke6 {[%clk 00:14:11]} {[%emt 00:00:13]} 33. Ne3 {[%clk 00:05:35]} {[%emt
00:00:19]} Bh6 {[%clk 00:14:06]} {[%emt 00:00:35]} 34. b4 {[%clk 00:04:40]}
{[%emt 00:01:26]} Rf8+ {[%clk 00:14:27]} {[%emt 00:00:08]} 35. Ke2 {[%clk
00:04:08]} {[%emt 00:01:02]} Ne4 {[%clk 00:14:01]} {[%emt 00:00:56]} 36. Rf1
{[%clk 00:03:48]} {[%emt 00:00:51]} Rb8 {[%clk 00:13:53]} {[%emt 00:00:37]} 37.
a3 {[%clk 00:03:41]} {[%emt 00:00:38]} Bxe3 {[%clk 00:11:59]} {[%emt 00:02:23]}
38. Kxe3 {[%clk 00:04:06]} {[%emt 00:00:06]} d5 {[%clk 00:12:23]} {[%emt
00:00:06]} 39. Rc1 {[%clk 00:03:44]} {[%emt 00:01:25]} Nd6 {[%clk 00:11:55]}
{[%emt 00:00:25]} 40. Rc2 {[%clk 00:02:25]} {[%emt 00:01:49]} Nc4+ {[%clk
00:11:05]} {[%emt 00:01:19]} 41. Ke2 {[%clk 00:01:51]} {[%emt 00:01:05]} Kf5
{[%clk 00:09:03]} {[%emt 00:02:32]} 42. Bc1 {[%clk 00:01:27]} {[%emt 00:00:54]}
Ke4 {[%clk 00:07:48]} {[%emt 00:01:44]} 43. Rc3 {[%clk 00:01:00]} {[%emt
00:00:58]} Rc8 {[%clk 00:06:54]} {[%emt 00:01:23]} 44. b5 {[%clk 00:27:58]}
{[%emt 00:03:32]} d4 {[%clk 00:37:12]} {[%emt 00:00:12]} 45. Rb3 {[%clk
00:27:38]} {[%emt 00:00:51]} Na5 {[%clk 00:36:49]} {[%emt 00:00:52]} 46. Rb1
{[%clk 00:28:01]} {[%emt 00:00:06]} d3+ {[%clk 00:36:45]} {[%emt 00:00:34]} 47.
Ke1 {[%clk 00:22:40]} {[%emt 00:05:52]} Kf3 {[%clk 00:35:15]} {[%emt 00:02:00]}
48. a4 {[%clk 00:19:38]} {[%emt 00:03:32]} e4 {[%clk 00:35:14]} {[%emt
00:00:30]} 49. Bd2 {[%clk 00:17:50]} {[%emt 00:02:19]} Nc4 {[%clk 00:34:30]}
{[%emt 00:01:13]} 50. b6 {[%clk 00:17:04]} {[%emt 00:01:17]} e3 {[%clk
00:33:00]} {[%emt 00:01:59]} 51. Bxe3 {[%clk 00:15:08]} {[%emt 00:02:26]} Kxe3
{[%clk 00:33:18]} {[%emt 00:00:12]} 52. b7 {[%clk 00:15:33]} {[%emt 00:00:05]}
d2+ {[%clk 00:33:42]} {[%emt 00:00:05]} 53. Kd1 {[%clk 00:15:27]} {[%emt
00:00:36]} Nb2+ {[%clk 00:34:00]} {[%emt 00:00:12]} 0-1

[Event "Allsvenskan div 1, gr.3, R1. SS Manhem - Hultsfreds SK"]
[Site "Goteborg, Sweden"]
[Date "2019.10.20"]
[Round "1.4"]
[White "Berggren Torell, Harald"]
[Black "Persson, Staffan"]
[Result "1/2-1/2"]
[TimeControl "90 min. for 40 moves + 30 min. + 30 seconds per move from move one."]
[WhiteElo "2117"]
[BlackElo "2095"]

1. f4 {[%clk 01:25:39]} {[%emt 00:05:20]} d5 {[%clk 01:29:18]} {[%emt
00:01:42]} 2. Nf3 {[%clk 01:23:47]} {[%emt 00:02:23]} c5 {[%clk 01:28:49]}
{[%emt 00:00:58]} 3. g3 {[%clk 01:23:15]} {[%emt 00:01:03]} Nc6 {[%clk
01:27:47]} {[%emt 00:01:32]} 4. d3 {[%clk 01:23:31]} {[%emt 00:00:14]} g6
{[%clk 01:25:21]} {[%emt 00:02:56]} 5. Bg2 {[%clk 01:22:30]} {[%emt 00:01:32]}
Bg7 {[%clk 01:24:58]} {[%emt 00:00:52]} 6. O-O {[%clk 01:22:53]} {[%emt
00:00:07]} Nf6 {[%clk 01:24:16]} {[%emt 00:01:11]} 7. c3 {[%clk 01:23:18]}
{[%emt 00:00:06]} O-O {[%clk 01:24:32]} {[%emt 00:00:14]} 8. Na3 {[%clk
01:23:40]} {[%emt 00:00:09]} Re8 {[%clk 01:20:05]} {[%emt 00:04:57]} 9. Ne5
{[%clk 01:23:18]} {[%emt 00:00:52]} Qb6 {[%clk 01:01:01]} {[%emt 00:19:34]} 10.
Qb3 {[%clk 01:12:05]} {[%emt 00:11:43]} Qxb3 {[%clk 00:52:03]} {[%emt
00:09:28]} 11. axb3 {[%clk 01:12:30]} {[%emt 00:00:05]} Na5 {[%clk 00:51:28]}
{[%emt 00:01:05]} 12. Nb5 {[%clk 01:12:30]} {[%emt 00:00:31]} Nxb3 {[%clk
00:51:29]} {[%emt 00:00:29]} 13. Ra3 {[%clk 01:11:43]} {[%emt 00:01:17]} Nxc1
{[%clk 00:50:39]} {[%emt 00:01:20]} 14. Nc7 {[%clk 01:11:03]} {[%emt 00:01:11]}
Nxe2+ {[%clk 00:49:04]} {[%emt 00:02:04]} 15. Kf2 {[%clk 01:11:04]} {[%emt
00:00:29]} Nxf4 {[%clk 00:43:00]} {[%emt 00:06:34]} 16. Nxa8 {[%clk 01:03:21]}
{[%emt 00:08:13]} Nh3+ {[%clk 00:36:02]} {[%emt 00:07:27]} 17. Ke1 {[%clk
01:02:57]} {[%emt 00:00:54]} a6 {[%clk 00:27:02]} {[%emt 00:09:31]} 18. Nb6
{[%clk 00:56:35]} {[%emt 00:06:52]} Be6 {[%clk 00:26:33]} {[%emt 00:00:58]} 19.
Ra5 {[%clk 00:54:37]} {[%emt 00:02:28]} Rd8 {[%clk 00:22:11]} {[%emt 00:04:53]}
20. Rxc5 {[%clk 00:52:55]} {[%emt 00:02:11]} Rd6 {[%clk 00:19:38]} {[%emt
00:03:02]} 21. Nc8 {[%clk 00:48:43]} {[%emt 00:04:42]} Rd8 {[%clk 00:19:34]}
{[%emt 00:00:34]} 22. Nb6 {[%clk 00:41:56]} {[%emt 00:07:17]} Rd6 {[%clk
00:16:54]} {[%emt 00:03:11]} 23. Nc8 {[%clk 00:42:20]} {[%emt 00:00:06]} Rd8
{[%clk 00:17:17]} {[%emt 00:00:07]} 1/2-1/2

[Event "Allsvenskan div 1, gr.3, R1. SS Manhem - Hultsfreds SK"]
[Site "Goteborg, Sweden"]
[Date "2019.10.20"]
[Round "1.6"]
[White "Möller, Jan"]
[Black "Wademark, Helge"]
[Result "1-0"]
[TimeControl "90 min. for 40 moves + 30 min. + 30 seconds per move from move one."]
[WhiteElo "2091"]
[BlackElo "1993"]

1. Nf3 {[%clk 01:30:58]} {[%emt 00:00:01]} d5 {[%clk 01:30:46]} {[%emt
00:00:14]} 2. d4 {[%clk 01:31:22]} {[%emt 00:00:06]} c6 {[%clk 01:31:00]}
{[%emt 00:00:16]} 3. c4 {[%clk 01:31:45]} {[%emt 00:00:08]} e6 {[%clk
01:31:21]} {[%emt 00:00:09]} 4. Nc3 {[%clk 01:31:20]} {[%emt 00:00:55]} f5
{[%clk 01:31:22]} {[%emt 00:00:29]} 5. g3 {[%clk 01:30:33]} {[%emt 00:01:16]}
Nf6 {[%clk 01:31:23]} {[%emt 00:00:29]} 6. Bg2 {[%clk 01:30:56]} {[%emt
00:00:07]} Bd6 {[%clk 01:30:58]} {[%emt 00:00:54]} 7. Bf4 {[%clk 01:30:00]}
{[%emt 00:01:26]} Qc7 {[%clk 01:28:43]} {[%emt 00:02:45]} 8. Bxd6 {[%clk
01:23:32]} {[%emt 00:06:59]} Qxd6 {[%clk 01:29:10]} {[%emt 00:00:03]} 9. Ne5
{[%clk 01:16:26]} {[%emt 00:07:36]} b6 {[%clk 01:24:54]} {[%emt 00:04:46]} 10.
O-O {[%clk 01:11:33]} {[%emt 00:05:23]} O-O {[%clk 01:23:46]} {[%emt 00:01:39]}
11. cxd5 {[%clk 01:03:54]} {[%emt 00:08:08]} exd5 {[%clk 01:21:33]} {[%emt
00:02:42]} 12. Rc1 {[%clk 01:02:58]} {[%emt 00:01:26]} Bb7 {[%clk 01:11:14]}
{[%emt 00:10:49]} 13. Qc2 {[%clk 00:56:03]} {[%emt 00:07:23]} g6 {[%clk
01:10:25]} {[%emt 00:01:21]} 14. a3 {[%clk 00:54:37]} {[%emt 00:01:56]} Nbd7
{[%clk 01:08:18]} {[%emt 00:02:37]} 15. f4 {[%clk 00:53:49]} {[%emt 00:01:19]}
Kg7 {[%clk 01:07:57]} {[%emt 00:00:51]} 16. b4 {[%clk 00:52:16]} {[%emt
00:02:02]} Rfc8 {[%clk 01:04:23]} {[%emt 00:04:03]} 17. Qb3 {[%clk 00:51:51]}
{[%emt 00:00:55]} Ne4 {[%clk 01:02:06]} {[%emt 00:02:47]} 18. Nxe4 {[%clk
00:50:17]} {[%emt 00:02:05]} fxe4 {[%clk 01:00:19]} {[%emt 00:02:17]} 19. Bh3
{[%clk 00:49:26]} {[%emt 00:01:21]} Rc7 {[%clk 01:00:46]} {[%emt 00:00:02]} 20.
Bxd7 {[%clk 00:48:57]} {[%emt 00:00:59]} Rxd7 {[%clk 01:01:14]} {[%emt
00:00:02]} 21. Nxd7 {[%clk 00:49:20]} {[%emt 00:00:07]} Qxd7 {[%clk 01:01:37]}
{[%emt 00:00:07]} 22. e3 {[%clk 00:47:17]} {[%emt 00:02:32]} Ba6 {[%clk
01:00:33]} {[%emt 00:01:34]} 23. Rf2 {[%clk 00:46:23]} {[%emt 00:01:24]} Bc4
{[%clk 01:00:41]} {[%emt 00:00:22]} 24. Rxc4 {[%clk 00:44:33]} {[%emt
00:02:21]} dxc4 {[%clk 01:01:09]} {[%emt 00:00:02]} 25. Qxc4 {[%clk 00:44:56]}
{[%emt 00:00:07]} Rf8 {[%clk 01:00:41]} {[%emt 00:00:57]} 26. Rc2 {[%clk
00:41:21]} {[%emt 00:04:04]} Rf6 {[%clk 01:00:12]} {[%emt 00:01:00]} 27. a4
{[%clk 00:37:19]} {[%emt 00:04:31]} Kh6 {[%clk 00:56:36]} {[%emt 00:04:08]} 28.
b5 {[%clk 00:21:06]} {[%emt 00:16:42]} c5 {[%clk 00:55:16]} {[%emt 00:01:51]}
29. Kg2 {[%clk 00:18:17]} {[%emt 00:03:19]} cxd4 {[%clk 00:48:01]} {[%emt
00:07:45]} 30. Qxd4 {[%clk 00:17:31]} {[%emt 00:01:16]} Qe7 {[%clk 00:48:06]}
{[%emt 00:00:24]} 31. Rc6 {[%clk 00:16:40]} {[%emt 00:01:21]} Rxc6 {[%clk
00:45:18]} {[%emt 00:03:18]} 32. bxc6 {[%clk 00:17:06]} {[%emt 00:00:05]} Qe6
{[%clk 00:45:43]} {[%emt 00:00:05]} 33. Qd7 {[%clk 00:11:41]} {[%emt 00:05:55]}
Qa2+ {[%clk 00:45:52]} {[%emt 00:00:21]} 34. Kh3 {[%clk 00:12:07]} {[%emt
00:00:05]} Qe2 {[%clk 00:46:02]} {[%emt 00:00:18]} 35. Qg4 {[%clk 00:12:27]}
{[%emt 00:00:10]} Qc4 {[%clk 00:41:01]} {[%emt 00:05:31]} 36. Qg5+ {[%clk
00:12:05]} {[%emt 00:00:53]} Kg7 {[%clk 00:41:28]} {[%emt 00:00:03]} 37. Qe7+
{[%clk 00:12:20]} {[%emt 00:00:15]} Kh6 {[%clk 00:40:39]} {[%emt 00:01:19]} 38.
c7 {[%clk 00:12:27]} {[%emt 00:00:21]} Qc6 {[%clk 00:35:52]} {[%emt 00:05:17]}
39. Qf8+ {[%clk 00:12:39]} {[%emt 00:00:18]} Kh5 {[%clk 00:35:37]} {[%emt
00:00:40]} 40. g4# {[%clk 00:13:05]} {[%emt 00:00:08]} 1-0

[Event "Allsvenskan div 1, gr.3, R1. SS Manhem - Hultsfreds SK"]
[Site "Goteborg, Sweden"]
[Date "2019.10.20"]
[Round "1.7"]
[White "Beijer, Fabian"]
[Black "Krantz, Martin"]
[Result "0-1"]
[TimeControl "90 min. for 40 moves + 30 min. + 30 seconds per move from move one."]
[WhiteElo "1981"]
[BlackElo "1986"]

1. d4 {[%clk 01:30:56]} {[%emt 00:00:03]} e6 {[%clk 01:30:44]} {[%emt
00:00:16]} 2. Bf4 {[%clk 01:31:05]} {[%emt 00:00:21]} Bd6 {[%clk 01:26:51]}
{[%emt 00:04:22]} 3. Bg3 {[%clk 01:30:26]} {[%emt 00:01:11]} f5 {[%clk
01:26:23]} {[%emt 00:00:57]} 4. e3 {[%clk 01:29:14]} {[%emt 00:01:43]} Nf6
{[%clk 01:24:44]} {[%emt 00:02:09]} 5. Nf3 {[%clk 01:26:33]} {[%emt 00:03:12]}
b6 {[%clk 01:19:38]} {[%emt 00:05:35]} 6. c3 {[%clk 01:17:30]} {[%emt
00:09:33]} Bb7 {[%clk 01:18:05]} {[%emt 00:02:03]} 7. Nbd2 {[%clk 01:17:01]}
{[%emt 00:00:59]} Ne4 {[%clk 01:09:06]} {[%emt 00:09:29]} 8. Nxe4 {[%clk
00:56:19]} {[%emt 00:21:13]} Bxe4 {[%clk 01:09:07]} {[%emt 00:00:28]} 9. Ne5
{[%clk 00:52:47]} {[%emt 00:04:02]} O-O {[%clk 01:04:46]} {[%emt 00:04:51]} 10.
Nc4 {[%clk 00:49:44]} {[%emt 00:03:34]} Be7 {[%clk 00:59:21]} {[%emt 00:05:54]}
11. f3 {[%clk 00:47:17]} {[%emt 00:02:57]} Bb7 {[%clk 00:59:12]} {[%emt
00:00:39]} 12. Bd3 {[%clk 00:46:47]} {[%emt 00:01:00]} d5 {[%clk 00:55:47]}
{[%emt 00:03:55]} 13. Nd2 {[%clk 00:43:49]} {[%emt 00:03:27]} c5 {[%clk
00:52:36]} {[%emt 00:03:40]} 14. Qe2 {[%clk 00:41:25]} {[%emt 00:02:56]} Nc6
{[%clk 00:45:19]} {[%emt 00:07:47]} 15. O-O {[%clk 00:39:08]} {[%emt 00:02:47]}
Bd6 {[%clk 00:40:46]} {[%emt 00:05:02]} 16. f4 {[%clk 00:32:43]} {[%emt
00:06:56]} Kh8 {[%clk 00:31:02]} {[%emt 00:10:14]} 17. Nf3 {[%clk 00:31:51]}
{[%emt 00:01:22]} Qe8 {[%clk 00:29:08]} {[%emt 00:02:23]} 18. Ne5 {[%clk
00:24:45]} {[%emt 00:07:37]} Nxe5 {[%clk 00:27:46]} {[%emt 00:01:52]} 19. fxe5
{[%clk 00:25:04]} {[%emt 00:00:11]} Be7 {[%clk 00:27:43]} {[%emt 00:00:32]} 20.
a4 {[%clk 00:24:22]} {[%emt 00:01:13]} a5 {[%clk 00:23:01]} {[%emt 00:05:11]}
21. b3 {[%clk 00:22:12]} {[%emt 00:02:41]} Qd7 {[%clk 00:19:19]} {[%emt
00:04:12]} 22. Bb5 {[%clk 00:19:47]} {[%emt 00:02:55]} Bc6 {[%clk 00:18:30]}
{[%emt 00:01:19]} 23. Bxc6 {[%clk 00:14:46]} {[%emt 00:05:32]} Qxc6 {[%clk
00:18:57]} {[%emt 00:00:03]} 24. Qb5 {[%clk 00:13:41]} {[%emt 00:01:34]} Rfc8
{[%clk 00:15:42]} {[%emt 00:03:43]} 25. Rfc1 {[%clk 00:13:06]} {[%emt
00:01:07]} Qxb5 {[%clk 00:12:47]} {[%emt 00:03:26]} 26. axb5 {[%clk 00:13:34]}
{[%emt 00:00:01]} c4 {[%clk 00:12:47]} {[%emt 00:00:29]} 27. Ra4 {[%clk
00:12:38]} {[%emt 00:01:27]} cxb3 {[%clk 00:11:30]} {[%emt 00:01:48]} 28. Be1
{[%clk 00:13:06]} {[%emt 00:00:01]} Rc4 {[%clk 00:11:22]} {[%emt 00:00:37]} 0-1